bitfinex/quotes_BTCUSD_20250212
["timestamp","ask_amount","ask_price","bid_price","bid_amount"]
[1739327417382,0.155946,96187.0,96186.0,0.00766622]
[1739327434665,0.2080316,96189.0,96186.0,0.13466622]
[1739327434884,0.0001066,96189.0,96187.0,0.09218901]
[1739327435917,0.155944,96188.0,96187.0,0.0787]
[1739327436034,0.155944,96188.0,96187.0,0.0817]
[1739327436236,0.155944,96188.0,96187.0,0.0787]
[1739327437503,0.155944,96188.0,96187.0,0.0867]
[1739327437827,0.155944,96188.0,96187.0,0.0897]
[1739327438099,0.155944,96188.0,96187.0,0.0787]
[1739327438312,0.155944,96188.0,96187.0,0.0827]
[1739327439030,0.155944,96188.0,96187.0,0.0917]
[1739327441780,0.0001066,96189.0,96188.0,0.0787]
[1739327441987,0.0001066,96189.0,96188.0,0.33714765]
[1739327442182,0.0001066,96189.0,96188.0,0.18120365]
[1739327442805,0.0001066,96189.0,96188.0,0.33714765]
[1739327443193,0.0001066,96189.0,96188.0,0.18120365]
[1739327443356,0.0001066,96189.0,96188.0,0.18420365]
[1739327443566,0.0001066,96189.0,96188.0,0.19220365]
[1739327443784,0.0001066,96189.0,96188.0,0.34814765]
[1739327443985,0.0001066,96189.0,96188.0,0.19220365]
[1739327444261,0.0001066,96189.0,96188.0,0.18420365]
[1739327444456,0.0001066,96189.0,96188.0,0.19220365]
[1739327444661,0.0001066,96189.0,96188.0,0.47546862]
[1739327444867,0.0001066,96189.0,96188.0,0.47246862]
[1739327445043,0.0001066,96189.0,96188.0,0.46746862]
[1739327445247,0.0001066,96189.0,96188.0,0.33452462]
[1739327445544,0.0001066,96189.0,96188.0,0.49546862]
[1739327445784,0.0001066,96189.0,96188.0,0.49846862]
[1739327445961,0.0001066,96189.0,96188.0,0.49546862]
[1739327446297,0.0001066,96189.0,96188.0,0.49946862]
[1739327446496,0.0001066,96189.0,96188.0,0.26300365]
[1739327447160,0.0001066,96189.0,96188.0,0.25500365]
[1739327447365,0.0001066,96189.0,96188.0,0.26600365]
[1739327447620,0.0001066,96189.0,96188.0,0.80090365]
[1739327449233,0.0001066,96189.0,96188.0,0.95684765]
[1739327449785,0.0001066,96189.0,96188.0,0.80090365]
[1739327450809,0.0001066,96189.0,96188.0,0.80112751]
[1739327452364,0.0001066,96189.0,96188.0,0.90363116]
[1739327453357,0.0001066,96189.0,96188.0,1.05957516]
[1739327454021,0.0001066,96189.0,96188.0,0.90363116]
[1739327454820,0.0001066,96189.0,96188.0,0.80112751]
[1739327455580,0.0001066,96189.0,96188.0,0.95707151]
[1739327455856,0.0001066,96189.0,96188.0,0.80112751]
[1739327458682,0.0001066,96189.0,96188.0,0.95707151]
[1739327467071,0.0001066,96206.0,96189.0,0.1046]
[1739327467196,0.155925,96200.0,96194.0,0.0816]
[1739327467396,0.155925,96200.0,96195.0,0.10250365]
[1739327468076,0.155922,96202.0,96195.0,0.10250365]
[1739327469073,0.155922,96202.0,96195.0,0.10350365]
[1739327469281,0.155922,96202.0,96195.0,0.10250365]
[1739327469520,0.155922,96202.0,96195.0,0.2050073]
[1739327469744,0.155924,96201.0,96195.0,0.10350365]
[1739327470144,0.155921,96203.0,96195.0,0.10350365]
[1739327470299,0.207891,96204.0,96195.0,0.10350365]
[1739327470492,0.155922,96202.0,96195.0,0.10350365]
[1739327470698,0.155922,96202.0,96195.0,0.10250365]
[1739327471076,0.155922,96202.0,96195.0,0.10350365]
[1739327471285,0.155921,96203.0,96195.0,0.25843665]
[1739327471498,0.155921,96203.0,96195.0,0.79333665]
[1739327471705,0.155921,96203.0,96195.0,0.81341758]
[1739327472225,0.155921,96202.0,96195.0,0.81341758]
[1739327472659,0.155921,96202.0,96195.0,0.79533665]
[1739327473081,0.15592,96203.0,96195.0,0.79333665]
[1739327473406,0.15592,96203.0,96195.0,0.79433665]
[1739327473742,0.15592,96203.0,96195.0,0.79333665]
[1739327474149,0.15592,96203.0,96195.0,0.79433665]
[1739327474866,0.155921,96202.0,96195.0,0.79433665]
[1739327475070,0.155921,96203.0,96195.0,0.84020137]
[1739327475461,0.207891,96204.0,96195.0,0.68426837]
[1739327475834,0.15592,96203.0,96195.0,0.83919937]
[1739327475973,0.15592,96203.0,96195.0,0.84019937]
[1739327476371,0.0001066,96204.0,96198.0,0.023]
[1739327476576,0.0001066,96204.0,96203.0,0.28612]
[1739327476785,0.0001066,96204.0,96203.0,0.38862365]
[1739327477877,0.0001066,96204.0,96203.0,0.39262365]
[1739327479118,0.0001066,96204.0,96203.0,0.40362365]
[1739327480299,0.0001066,96204.0,96203.0,0.93852365]
[1739327483350,0.0001066,96204.0,96203.0,1.02102276]
[1739327483668,0.0001066,96204.0,96203.0,0.93852365]
[1739327484115,0.0001066,96204.0,96203.0,0.96152365]
[1739327486322,0.0001066,96204.0,96203.0,0.95052365]
[1739327486648,0.0001066,96204.0,96203.0,0.95752365]
[1739327487002,0.0001066,96204.0,96203.0,0.96152365]
[1739327487342,0.0001066,96204.0,96203.0,1.0640273]
[1739327488312,0.0001066,96204.0,96203.0,1.0600273]
[1739327488521,0.0001066,96204.0,96203.0,1.0550273]
[1739327488714,0.0001066,96204.0,96203.0,1.0660273]
[1739327489166,0.0001066,96204.0,96203.0,1.0550273]
[1739327489524,0.0001066,96204.0,96203.0,1.0700273]
[1739327490396,0.0001066,96204.0,96203.0,1.0640273]
[1739327490710,0.0001066,96204.0,96203.0,1.0710273]
[1739327492120,0.0001066,96204.0,96203.0,0.96852365]
[1739327492334,0.26445234,96231.0,96204.0,0.023]
[1739327492480,0.0955765,96220.0,96217.0,0.155897]
[1739327492695,0.155884,96226.0,96218.0,0.10250365]
[1739327493722,0.1559622,96226.0,96218.0,0.10250365]
[1739327494147,0.155885,96225.0,96218.0,0.10250365]
[1739327494348,7.82e-05,96226.0,96218.0,0.10250365]
[1739327494868,0.1559612,96226.0,96218.0,0.10250365]
[1739327495226,7.82e-05,96226.0,96218.0,0.10450365]
[1739327496080,7.82e-05,96226.0,96218.0,0.26039765]
[1739327496503,7.82e-05,96226.0,96219.0,0.23163746]
[1739327496704,7.82e-05,96226.0,96219.0,0.33414111]
[1739327496879,7.82e-05,96226.0,96219.0,0.25839765]
[1739327497435,7.82e-05,96226.0,96219.0,0.10250365]
[1739327497616,7.82e-05,96226.0,96220.0,0.155892]
[1739327497815,7.82e-05,96226.0,96219.0,0.10250365]
[1739327498231,7.82e-05,96226.0,96219.0,0.63940365]
[1739327498433,7.82e-05,96226.0,96220.0,0.207856]
[1739327499335,7.82e-05,96226.0,96220.0,0.155891]
[1739327499696,7.82e-05,96226.0,96224.0,0.155886]
[1739327499897,7.82e-05,96226.0,96225.0,0.0813]
[1739327501631,7.82e-05,96226.0,96225.0,0.0853]
[1739327502313,7.82e-05,96226.0,96225.0,0.0963]
[1739327502981,7.82e-05,96226.0,96225.0,0.19880365]
[1739327503169,7.82e-05,96226.0,96225.0,0.35468765]
[1739327504131,7.82e-05,96226.0,96225.0,0.19880365]
[1739327504688,0.1559612,96226.0,96225.0,0.015]
[1739327505105,7.82e-05,96226.0,96225.0,0.015]
[1739327508630,7.82e-05,96226.0,96225.0,0.114675]
[1739327510289,7.82e-05,96226.0,96225.0,0.45616265]
[1739327510895,7.82e-05,96226.0,96225.0,0.44116265]
[1739327511255,7.82e-05,96226.0,96225.0,0.45616265]
[1739327512619,7.82e-05,96226.0,96225.0,0.35648765]
[1739327513004,7.82e-05,96226.0,96225.0,0.89138765]
[1739327513396,7.82e-05,96226.0,96225.0,0.8916113]
[1739327513805,7.82e-05,96226.0,96225.0,0.8806113]
[1739327514007,7.82e-05,96226.0,96225.0,0.7357273]
[1739327515305,7.82e-05,96226.0,96225.0,0.8916113]
[1739327515653,7.82e-05,96226.0,96225.0,0.7357273]
[1739327518575,7.82e-05,96226.0,96225.0,0.82239383]
[1739327519763,7.82e-05,96226.0,96225.0,0.7357273]
[1739327520834,0.1559612,96226.0,96225.0,0.55012365]
[1739327522222,0.1559612,96226.0,96225.0,0.54612365]
[1739327522429,0.1559612,96226.0,96225.0,0.54812365]
[1739327522662,0.0755,96229.0,96225.0,0.54812365]
[1739327522823,0.155883,96226.0,96225.0,0.54812365]
[1739327523146,0.155883,96226.0,96225.0,0.53712365]
[1739327523345,0.155883,96226.0,96225.0,0.54112365]
[1739327523547,0.155883,96226.0,96225.0,0.54212365]
[1739327523747,0.155883,96226.0,96225.0,0.54112365]
[1739327523961,0.155883,96226.0,96225.0,0.53512365]
[1739327524189,0.155883,96226.0,96225.0,0.54012365]
[1739327524843,0.155883,96226.0,96225.0,0.00522365]
[1739327525470,0.155883,96226.0,96225.0,0.00422365]
[1739327525682,0.155883,96226.0,96225.0,0.00122365]
[1739327525851,0.155883,96226.0,96225.0,0.00622365]
[1739327531048,0.0001065,96231.0,96225.0,0.00622365]
[1739327531406,0.0001065,96231.0,96225.0,0.08742365]
[1739327532023,0.0001065,96231.0,96225.0,0.08242365]
[1739327533026,0.0001065,96231.0,96225.0,0.08142365]
[1739327533305,0.0001065,96231.0,96225.0,0.08342365]
[1739327533832,0.0001065,96231.0,96225.0,0.08442365]
[1739327534144,0.0001065,96231.0,96225.0,0.08242365]
[1739327534344,0.1559815,96231.0,96225.0,0.08242365]
[1739327535214,0.0001065,96231.0,96225.0,0.08242365]
[1739327535391,4.473e-05,96231.0,96225.0,0.08242365]
[1739327535690,4.473e-05,96231.0,96225.0,0.08642365]
[1739327536529,0.15592073,96231.0,96225.0,0.08642365]
[1739327536738,0.15592073,96231.0,96226.0,0.207844]
[1739327536739,4.473e-05,96231.0,96226.0,0.207844]
[1739327536977,4.473e-05,96231.0,96227.0,0.155881]
[1739327537572,4.473e-05,96231.0,96228.0,0.155879]
[1739327537772,4.473e-05,96231.0,96225.0,0.29426765]
[1739327537976,4.473e-05,96231.0,96226.0,0.155882]
[1739327538206,4.473e-05,96231.0,96225.0,0.29426765]
[1739327538403,4.473e-05,96231.0,96225.0,0.29326765]
[1739327538637,4.473e-05,96231.0,96227.0,0.001]
[1739327539087,4.473e-05,96231.0,96226.0,0.004]
[1739327539288,4.473e-05,96231.0,96226.0,0.001]
[1739327539493,4.473e-05,96231.0,96225.0,0.23730765]
[1739327539697,4.473e-05,96231.0,96225.0,0.24130765]
[1739327539984,0.15591973,96231.0,96225.0,0.08542365]
[1739327540192,4.473e-05,96231.0,96225.0,0.08142365]
[1739327540396,4.473e-05,96231.0,96226.0,0.001]
[1739327540542,4.473e-05,96231.0,96226.0,0.005]
[1739327540742,0.155876,96230.0,96226.0,0.005]
[1739327540963,4.473e-05,96231.0,96226.0,0.005]
[1739327541801,4.473e-05,96231.0,96226.0,0.001]
[1739327542201,0.155881,96227.0,96226.0,0.001]
[1739327542743,0.155883,96226.0,96225.0,0.00022365]
[1739327543150,0.155881,96227.0,96225.0,0.00022365]
[1739327543285,0.155881,96227.0,96225.0,0.00122365]
[1739327543643,0.155881,96227.0,96226.0,0.007]
[1739327543992,0.155881,96227.0,96226.0,0.009]
[1739327544813,0.155881,96227.0,96226.0,0.002]
[1739327545190,0.155883,96226.0,96225.0,0.00022365]
[1739327545391,0.155883,96226.0,96225.0,0.00922365]
[1739327545638,0.155883,96226.0,96225.0,0.00722365]
[1739327546396,0.155883,96226.0,96225.0,0.00022365]
[1739327546634,4.473e-05,96231.0,96225.0,0.00322365]
[1739327546847,0.155881,96227.0,96226.0,0.007]
[1739327548101,0.155881,96227.0,96225.0,0.00022365]
[1739327548505,0.155883,96226.0,96225.0,0.00822365]
[1739327548890,0.155883,96226.0,96225.0,0.00022365]
[1739327549295,0.155883,96226.0,96225.0,0.00722365]
[1739327549610,0.155883,96226.0,96225.0,0.01022365]
[1739327549815,0.207837,96229.0,96225.0,0.00322365]
[1739327550137,0.155883,96226.0,96225.0,0.00322365]
[1739327550624,4.473e-05,96231.0,96225.0,0.00322365]
[1739327551201,4.473e-05,96231.0,96225.0,0.01122365]
[1739327551435,0.15588,96228.0,96225.0,0.00822365]
[1739327551681,0.15588,96228.0,96225.0,0.00122365]
[1739327552082,0.15588,96228.0,96225.0,0.00522365]
[1739327552502,0.15588,96228.0,96225.0,0.00022365]
[1739327552855,0.15588,96228.0,96225.0,0.00822365]
[1739327554135,0.155878,96229.0,96225.0,0.00822365]
[1739327554400,0.20787973,96231.0,96225.0,0.00822365]
[1739327554755,4.473e-05,96231.0,96225.0,0.03246522]
[1739327555121,4.473e-05,96231.0,96225.0,0.00022365]
[1739327555323,4.473e-05,96231.0,96225.0,0.00622365]
[1739327555523,4.473e-05,96231.0,96225.0,0.00822365]
[1739327555671,4.473e-05,96231.0,96225.0,0.00022365]
[1739327555872,4.473e-05,96231.0,96225.0,0.04908981]
[1739327556081,4.473e-05,96231.0,96225.0,0.05408981]
[1739327557988,4.473e-05,96231.0,96226.0,0.0812]
[1739327558985,4.473e-05,96231.0,96230.0,0.155876]
[1739327559193,4.473e-05,96231.0,96230.0,0.237076]
[1739327561272,4.473e-05,96231.0,96230.0,0.242076]
[1739327562587,4.473e-05,96231.0,96230.0,0.0862]
[1739327562769,4.473e-05,96231.0,96230.0,0.16640686]
[1739327563992,4.473e-05,96231.0,96230.0,0.0862]
[1739327573354,4.473e-05,96231.0,96230.0,0.242076]
[1739327573557,4.473e-05,96231.0,96230.0,0.0862]
[1739327574341,4.473e-05,96231.0,96230.0,0.34457965]
[1739327575400,4.473e-05,96231.0,96230.0,0.87947965]
[1739327575760,4.473e-05,96231.0,96230.0,0.8997766]
[1739327579555,4.473e-05,96231.0,96230.0,0.87947965]
[1739327579758,4.473e-05,96231.0,96230.0,0.72360365]
[1739327582417,4.473e-05,96231.0,96230.0,0.87947965]
[1739327583043,4.473e-05,96231.0,96230.0,0.72360365]
[1739327584155,4.473e-05,96231.0,96230.0,0.90247965]
[1739327584451,4.473e-05,96231.0,96230.0,1.0544833]
[1739327585372,4.473e-05,96231.0,96230.0,1.0494833]
[1739327586634,4.473e-05,96231.0,96230.0,1.0584833]
[1739327586858,4.473e-05,96231.0,96230.0,1.0614833]
[1739327587080,4.473e-05,96231.0,96230.0,0.80310365]
[1739327587475,4.473e-05,96231.0,96230.0,0.82261956]
[1739327588183,4.473e-05,96231.0,96230.0,0.79961956]
[1739327588417,4.473e-05,96231.0,96230.0,0.82261956]
[1739327588987,4.473e-05,96231.0,96230.0,0.80310365]
[1739327589160,4.473e-05,96231.0,96230.0,0.89904725]
[1739327591385,4.473e-05,96231.0,96230.0,1.05492325]
[1739327591582,4.473e-05,96231.0,96230.0,0.89904725]
[1739327592446,4.473e-05,96231.0,96230.0,0.80310365]
[1739327596078,0.15372337,96235.0,96231.0,0.023]
[1739327596279,0.15372337,96235.0,96233.0,0.023]
[1739327596592,0.15372337,96235.0,96234.0,0.10250365]
[1739327596794,0.155871,96234.0,96233.0,0.10250365]
[1739327596998,0.155874,96231.0,96230.0,0.5469]
[1739327597339,0.155874,96231.0,96230.0,0.5439]
[1739327597712,0.155874,96231.0,96230.0,0.5349]
[1739327598762,0.155876,96230.0,96229.0,0.00022365]
[1739327599046,0.1539354,96230.0,96229.0,0.00022365]
[1739327600237,0.1539354,96230.0,96229.0,0.00322365]
[1739327600554,0.1539354,96230.0,96229.0,0.01122365]
[1739327613349,0.207827,96234.0,96229.0,0.01122365]
[1739327613684,0.155876,96230.0,96229.0,0.01122365]
[1739327615354,0.155876,96230.0,96229.0,0.00322365]
[1739327615550,0.155876,96230.0,96229.0,0.00822365]
[1739327616072,0.155876,96230.0,96229.0,0.00322365]
[1739327616507,0.155876,96230.0,96229.0,0.01122365]
[1739327618752,0.1559825,96230.0,96229.0,0.01122365]
[1739327622384,0.1559825,96230.0,96229.0,0.00322365]
[1739327622662,0.1559825,96230.0,96229.0,0.00022365]
[1739327622797,0.1559825,96230.0,96229.0,0.01122365]
[1739327623140,0.1559825,96230.0,96229.0,0.00822365]
[1739327623351,0.1559825,96230.0,96229.0,0.00022365]
[1739327625102,0.1559825,96230.0,96229.0,0.00122365]
[1739327625426,0.1559825,96230.0,96229.0,0.00022365]
[1739327625628,0.155876,96230.0,96229.0,0.00022365]
[1739327625879,0.155876,96230.0,96229.0,0.00122365]
[1739327628159,0.305876,96230.0,96229.0,0.00122365]
[1739327628354,1.30338965,96230.0,96229.0,0.00122365]
[1739327628657,0.45697965,96230.0,96229.0,0.00122365]
[1739327629197,1.84066965,96230.0,96229.0,0.00122365]
[1739327629405,1.58952465,96230.0,96229.0,0.00022365]
[1739327630027,1.58952465,96230.0,96229.0,0.00122365]
[1739327630227,1.54182365,96230.0,96229.0,0.00122365]
[1739327630425,1.33212565,96230.0,96229.0,0.00122365]
[1739327630627,1.29468365,96230.0,96229.0,0.00122365]
[1739327630782,0.81582865,96230.0,96229.0,0.00122365]
[1739327639126,0.45697965,96230.0,96229.0,0.00122365]
[1739327639351,1.30098165,96230.0,96229.0,0.00122365]
[1739327640889,0.305883,96226.0,96225.0,6.5e-07]
[1739327641085,0.305883,96226.0,96211.0,0.0018228]
[1739327641086,0.305905,96212.0,96211.0,0.0018228]
[1739327641351,0.97005565,96212.0,96211.0,0.0018228]
[1739327641536,0.98005565,96212.0,96211.0,0.0018228]
[1739327643652,0.98105565,96212.0,96211.0,0.0018228]
[1739327643822,0.96106965,96212.0,96211.0,0.0018228]
[1739327644034,0.96006965,96212.0,96211.0,0.0018228]
[1739327644440,0.96206965,96212.0,96211.0,0.0018228]
[1739327644857,0.96006965,96212.0,96211.0,0.0018228]
[1739327645027,0.96206965,96212.0,96211.0,0.0018228]
[1739327645459,0.68189765,96212.0,96211.0,0.0018228]
[1739327647244,0.66796065,96212.0,96211.0,0.0018228]
[1739327647562,0.61046865,96212.0,96211.0,0.0018228]
[1739327649274,0.61046865,96212.0,96211.0,8e-07]
[1739327649387,0.41800865,96212.0,96211.0,8e-07]
[1739327649592,0.49670865,96212.0,96211.0,8e-07]
[1739327651957,0.50670865,96212.0,96211.0,8e-07]
[1739327653031,0.50470865,96212.0,96211.0,8e-07]
[1739327653473,0.50570865,96212.0,96211.0,8e-07]
[1739327654257,0.50570865,96212.0,96211.0,6.6e-07]
[1739327662449,0.305918,96204.0,96203.0,3.1e-07]
[1739327662779,0.40842165,96204.0,96203.0,3.1e-07]
[1739327663787,0.40849058,96204.0,96203.0,3.1e-07]
[1739327665120,0.41349058,96204.0,96203.0,3.1e-07]
[1739327666286,0.41649058,96204.0,96203.0,3.1e-07]
[1739327667971,0.305942,96189.0,96188.0,0.00022386]
[1739327668172,2.15099365,96189.0,96188.0,0.00022386]
[1739327668377,2.40154065,96189.0,96188.0,0.00022386]
[1739327668586,1.97461265,96189.0,96188.0,0.00022386]
[1739327668796,1.93758465,96189.0,96188.0,0.00022386]
[1739327668974,1.72227265,96189.0,96188.0,0.00022386]
[1739327669719,1.72527265,96189.0,96188.0,0.00022386]
[1739327670015,1.26034465,96189.0,96188.0,0.00022386]
[1739327670254,1.23772,96189.0,96188.0,0.00022386]
[1739327670454,0.305946,96187.0,96186.0,0.00022386]
[1739327670584,0.73784265,96187.0,96186.0,0.00022386]
[1739327670789,0.67401065,96187.0,96186.0,0.00022386]
[1739327671730,0.67801065,96187.0,96186.0,0.00022386]
[1739327672072,0.15,96186.0,96176.0,0.0807]
[1739327672274,0.305957,96180.0,96176.0,0.0807]
[1739327672477,0.305962,96177.0,96176.0,0.0807]
[1739327672886,0.305962,96177.0,96171.0,0.00022386]
[1739327672887,0.305965,96175.0,96171.0,0.00022386]
[1739327673088,0.40846865,96175.0,96171.0,0.00022386]
[1739327673320,0.92359365,96175.0,96171.0,0.00022386]
[1739327673522,1.11954565,96175.0,96171.0,0.00022386]
[1739327674121,0.99654265,96175.0,96174.0,0.00044322]
[1739327674539,1.02231641,96175.0,96174.0,0.00044322]
[1739327675553,1.03731641,96175.0,96174.0,0.00144322]
[1739327675957,1.06649504,96175.0,96174.0,0.00144322]
[1739327676203,1.07149504,96175.0,96174.0,0.00144322]
[1739327676508,1.07149504,96175.0,96174.0,2.2e-07]
[1739327676676,0.48342104,96175.0,96174.0,2.2e-07]
[1739327677626,0.15,96174.0,96171.0,0.00022386]
[1739327677754,0.30597,96172.0,96171.0,0.00030206]
[1739327677962,2.31742504,96172.0,96171.0,0.00030206]
[1739327678157,1.96442304,96172.0,96171.0,0.00030206]
[1739327678747,1.91156404,96172.0,96171.0,0.00130206]
[1739327679198,1.91556404,96172.0,96171.0,0.00030206]
[1739327679570,1.91556404,96172.0,96171.0,6e-08]
[1739327679778,0.305977,96168.0,96167.0,7.1e-07]
[1739327679973,0.40848065,96168.0,96167.0,0.000111]
[1739327680150,0.40848065,96168.0,96167.0,7.1e-05]
[1739327680351,0.305991,96159.0,96158.0,0.0807]
[1739327680574,0.79285965,96159.0,96158.0,0.08083291]
[1739327680771,0.86847565,96159.0,96158.0,0.00013291]
[1739327681233,0.156002,96152.0,96151.0,0.1286]
[1739327681406,0.765906,96152.0,96151.0,0.1286]
[1739327681611,0.727724,96152.0,96151.0,0.1286]
[1739327682214,0.82262765,96152.0,96151.0,0.1286]
[1739327682420,0.74553765,96152.0,96151.0,0.1286]
[1739327683414,0.26610565,96152.0,96151.0,0.1306]
[1739327683635,0.63637965,96152.0,96151.0,0.1306]
[1739327683855,0.63095965,96152.0,96151.0,0.1286]
[1739327684373,0.63195965,96152.0,96151.0,0.1356]
[1739327684698,0.59410965,96152.0,96151.0,0.1286]
[1739327684845,0.59410965,96152.0,96151.0,0.1346]
[1739327685252,0.59410965,96152.0,96151.0,0.1366]
[1739327686585,0.61040903,96152.0,96151.0,0.1366]
[1739327687692,0.47418003,96152.0,96151.0,0.1366]
[1739327690007,0.47418003,96152.0,96151.0,0.0887]
[1739327690639,0.47418003,96152.0,96151.0,0.08892386]
[1739327690844,0.47428663,96152.0,96151.0,0.08892386]
[1739327691350,0.47428663,96152.0,96151.0,0.08292386]
[1739327691525,0.62528663,96152.0,96151.0,0.08092386]
[1739327691710,0.62628663,96152.0,96151.0,0.08092386]
[1739327692056,0.62428663,96152.0,96151.0,0.08092386]
[1739327692252,0.62528663,96152.0,96151.0,0.08092386]
[1739327692482,0.62628663,96152.0,96151.0,0.08092386]
[1739327692755,0.62528663,96152.0,96151.0,0.08092386]
[1739327693025,0.62628663,96152.0,96151.0,0.08092386]
[1739327694034,0.52378298,96152.0,96151.0,0.08092386]
[1739327694289,0.33200798,96152.0,96151.0,0.08092386]
[1739327695081,0.33000798,96152.0,96151.0,0.08092386]
[1739327695489,0.33200798,96152.0,96151.0,0.08092386]
[1739327696684,0.33100798,96152.0,96151.0,0.08092386]
[1739327696886,0.002,96152.0,96151.0,0.07581103]
[1739327697618,0.158002,96152.0,96151.0,0.07581103]
[1739327697913,0.157002,96152.0,96151.0,0.07581103]
[1739327698477,0.158002,96152.0,96151.0,0.07581103]
[1739327700291,0.17430139,96152.0,96151.0,0.07581103]
[1739327700474,0.34711939,96152.0,96151.0,0.07581103]
[1739327701330,0.34611939,96152.0,96151.0,0.07581103]
[1739327701661,0.34711939,96152.0,96151.0,0.07581103]
[1739327701839,0.34611939,96152.0,96151.0,0.07581103]
[1739327702273,0.34711939,96152.0,96151.0,0.07581103]
[1739327702478,0.34611939,96152.0,96151.0,0.07581103]
[1739327703247,0.34711939,96152.0,96151.0,0.07581103]
[1739327703466,0.34722599,96152.0,96151.0,0.07581103]
[1739327704795,0.32440799,96152.0,96151.0,0.07581103]
[1739327706487,0.3231312,96152.0,96151.0,0.07581103]
[1739327706890,0.4391152,96152.0,96151.0,0.07581103]
[1739327707562,0.3231312,96152.0,96151.0,0.07581103]
[1739327708183,0.4391152,96152.0,96151.0,0.07581103]
[1739327709230,0.3231312,96152.0,96151.0,0.07581103]
[1739327709425,0.15,96153.0,96151.0,0.07581103]
[1739327709633,0.156002,96152.0,96151.0,0.07581103]
[1739327711998,0.157002,96152.0,96151.0,0.07581103]
[1739327712233,0.157002,96152.0,96151.0,0.12401103]
[1739327712572,0.156002,96152.0,96151.0,0.12401103]
[1739327713016,0.002,96152.0,96151.0,0.12401103]
[1739327713284,0.157002,96152.0,96151.0,0.12401103]
[1739327713415,0.156002,96152.0,96151.0,0.12401103]
[1739327713817,0.156002,96152.0,96151.0,0.12601103]
[1739327714274,0.156002,96152.0,96151.0,0.12401103]
[1739327714500,0.156002,96152.0,96151.0,0.12701103]
[1739327714839,0.1561086,96152.0,96151.0,0.12701103]
[1739327715822,0.1571086,96152.0,96151.0,0.12701103]
[1739327716054,0.1561086,96152.0,96151.0,0.12401103]
[1739327716293,0.1561086,96152.0,96151.0,0.13001103]
[1739327728885,0.0001066,96152.0,96151.0,0.14303452]
[1739327729037,0.0001066,96152.0,96151.0,0.24553817]
[1739327729867,0.0001066,96152.0,96151.0,0.40154217]
[1739327730082,0.0001066,96152.0,96151.0,0.42454217]
[1739327730650,0.0001066,96152.0,96151.0,0.95944217]
[1739327731510,0.0001066,96152.0,96151.0,0.95844217]
[1739327731934,0.0001066,96152.0,96151.0,0.96244217]
[1739327732108,0.09565483,96190.0,96174.0,0.0798]
[1739327732309,0.02041332,96182.0,96176.0,0.0798]
[1739327732525,0.207941,96181.0,96176.0,0.10250365]
[1739327732722,0.155957,96180.0,96177.0,0.0798]
[1739327733136,0.02041332,96182.0,96177.0,0.0798]
[1739327733347,0.155959,96179.0,96177.0,0.0798]
[1739327733633,0.02541332,96182.0,96177.0,0.0798]
[1739327733840,0.007,96180.0,96178.0,0.10250365]
[1739327734137,0.007,96180.0,96179.0,0.1274]
[1739327734340,0.007,96180.0,96179.0,0.22990365]
[1739327735107,0.15608573,96183.0,96180.0,0.0798]
[1739327735304,0.00013273,96183.0,96181.0,0.0798]
[1739327735681,0.15608573,96183.0,96181.0,0.0748]
[1739327736781,0.15608573,96183.0,96181.0,0.0758]
[1739327736958,0.15608573,96183.0,96181.0,0.0768]
[1739327738792,0.155954,96182.0,96181.0,0.0768]
[1739327739142,0.155954,96182.0,96181.0,0.3981]
[1739327739593,0.155954,96182.0,96181.0,0.3223]
[1739327739959,0.155954,96182.0,96181.0,0.3243]
[1739327740214,0.155954,96182.0,96181.0,0.3233]
[1739327740354,0.155954,96182.0,96181.0,0.3253]
[1739327744845,0.155954,96182.0,96181.0,0.004]
[1739327745292,0.305954,96182.0,96181.0,0.004]
[1739327747001,0.30037665,96182.0,96181.0,0.004]
[1739327751500,0.30037665,96182.0,96181.0,0.00422386]
[1739327751881,0.30048325,96182.0,96181.0,0.00422386]
[1739327752695,0.30048325,96182.0,96181.0,0.00222386]
[1739327752980,0.30048325,96182.0,96181.0,0.00422386]
[1739327753555,0.30048325,96182.0,96181.0,0.00222386]
[1739327753738,0.30048325,96182.0,96181.0,0.00422386]
[1739327754261,0.30048325,96182.0,96181.0,0.00222386]
[1739327754600,0.30048325,96182.0,96181.0,0.00422386]
[1739327757178,0.30048325,96182.0,96181.0,0.00022386]
[1739327757537,0.30048325,96182.0,96181.0,0.00322386]
[1739327757744,0.30048325,96182.0,96181.0,0.00222386]
[1739327757946,0.30048325,96182.0,96181.0,0.00022386]
[1739327761023,1.5623709,96182.0,96181.0,0.00022386]
[1739327761223,1.5290229,96182.0,96181.0,8.6e-07]
[1739327761438,0.4961869,96182.0,96181.0,8.6e-07]
[1739327761897,0.50161465,96182.0,96181.0,8.6e-07]
[1739327762501,0.49161465,96182.0,96181.0,8.6e-07]
[1739327762894,0.50161465,96182.0,96181.0,8.6e-07]
[1739327763549,0.51021465,96182.0,96181.0,0.00100086]
[1739327763686,0.52851233,96182.0,96181.0,0.00100086]
[1739327763886,2.33201333,96182.0,96181.0,0.00100086]
[1739327765045,2.33201333,96182.0,96181.0,8.6e-07]
[1739327765244,0.52851233,96182.0,96181.0,8.6e-07]
[1739327769961,0.52649178,96182.0,96181.0,8.6e-07]
[1739327772580,0.54949178,96182.0,96181.0,8.6e-07]
[1739327776343,0.54949178,96182.0,96181.0,7.2e-07]
[1739327777737,0.54189178,96182.0,96181.0,7.2e-07]
[1739327777956,0.54949178,96182.0,96181.0,7.2e-07]
[1739327782891,0.46629178,96182.0,96181.0,7.2e-07]
[1739327796563,0.49593389,96182.0,96181.0,7.2e-07]
[1739327797062,0.49465983,96182.0,96181.0,7.2e-07]
[1739327798320,0.82025983,96182.0,96181.0,7.2e-07]
[1739327799911,0.79061772,96182.0,96181.0,7.2e-07]
[1739327800772,0.78860387,96182.0,96181.0,7.2e-07]
[1739327801793,0.49126023,96182.0,96181.0,7.2e-07]
[1739327801987,0.64721423,96182.0,96181.0,7.2e-07]
[1739327806916,0.78961423,96182.0,96181.0,7.2e-07]
[1739327807126,0.99591423,96182.0,96181.0,7.2e-07]
[1739327811182,0.99602083,96182.0,96181.0,7.2e-07]
[1739327816539,0.96302083,96182.0,96181.0,0.07980072]
[1739327816741,0.50638603,96182.0,96181.0,0.07980072]
[1739327816969,0.1590606,96182.0,96181.0,0.14146079]
[1739327817284,0.1590606,96182.0,96181.0,0.12860072]
[1739327817705,0.1580606,96182.0,96181.0,0.12860072]
[1739327818134,0.1560606,96182.0,96181.0,0.12860072]
[1739327818571,0.1600606,96182.0,96181.0,0.12960072]
[1739327819090,0.1580606,96182.0,96181.0,0.12860072]
[1739327819760,0.0001066,96182.0,96181.0,0.14146079]
[1739327820087,0.0001066,96182.0,96181.0,0.14246079]
[1739327820292,0.0001066,96182.0,96181.0,0.14546079]
[1739327820777,0.0001066,96182.0,96181.0,0.14246079]
[1739327820928,0.0001066,96182.0,96181.0,0.14146079]
[1739327821104,0.0001066,96182.0,96181.0,0.15146079]
[1739327821524,0.0001066,96182.0,96181.0,0.13560072]